[Event "Titled Tuesday Blitz May 9 Late 2023"]
[White "Arabidze, Meri"]
[Black "Rodshtein, Maxim"]
[WhiteFideId "13604040"]
[BlackFideId "2806851"]
[WhiteElo "2405"]
[BlackElo "2555"]
[Result "1/2-1/2"]
[Round "05"]
[TimeControl "180+2"]
[Date "2023.05.09"]
[WhiteClock "0:00:04"]
[BlackClock "0:00:06"]

1. Nf3 {[%clk 0:03:00]}  g6 {[%clk 0:02:49]} 2. d4 {[%clk 0:03:01]}  Bg7 {[%clk 0:02:49]} 3. g3 {[%clk 0:03:02]}  c5 {[%clk 0:02:49]} 4. d5 {[%clk 0:03:01]}  d6 {[%clk 0:02:46]} 5. Bg2 {[%clk 0:03:01]}  Nf6 {[%clk 0:02:40]} 6. O-O {[%clk 0:03:01]}  b5 {[%clk 0:02:36]} 7. a4 {[%clk 0:03:01]}  b4 {[%clk 0:02:35]} 8. Re1 {[%clk 0:02:58]}  O-O {[%clk 0:02:27]} 9. e4 {[%clk 0:02:58]}  Bg4 {[%clk 0:02:26]} 10. Nbd2 {[%clk 0:02:58]}  Nbd7 {[%clk 0:02:16]} 11. Nc4 {[%clk 0:02:55]}  Nb6 {[%clk 0:02:04]} 12. Na5 {[%clk 0:02:55]}  Qc7 {[%clk 0:02:03]} 13. Nc6 {[%clk 0:02:46]}  Rfe8 {[%clk 0:01:50]} 14. h3 {[%clk 0:02:45]}  Bxf3 {[%clk 0:01:48]} 15. Bxf3 {[%clk 0:02:45]}  Nfd7 {[%clk 0:01:48]} 16. Bg2 {[%clk 0:02:31]}  Nc4 {[%clk 0:01:41]} 17. Ra2 {[%clk 0:02:16]}  Nde5 {[%clk 0:01:23]} 18. Nxe5 {[%clk 0:02:10]}  Nxe5 {[%clk 0:01:24]} 19. b3 {[%clk 0:02:10]}  c4 {[%clk 0:01:21]} 20. f4 {[%clk 0:02:02]}  Nd7 {[%clk 0:01:21]} 21. Be3 {[%clk 0:01:59]}  a6 {[%clk 0:01:20]} 22. Bf1 {[%clk 0:01:57]}  cxb3 {[%clk 0:01:17]} 23. cxb3 {[%clk 0:01:58]}  Rec8 {[%clk 0:01:17]} 24. Bc4 {[%clk 0:01:46]}  Bc3 {[%clk 0:01:10]} 25. Rf1 {[%clk 0:01:42]}  Qa5 {[%clk 0:01:09]} 26. Raf2 {[%clk 0:01:33]}  Rc7 {[%clk 0:01:03]} 27. Kg2 {[%clk 0:01:28]}  Rac8 {[%clk 0:01:02]} 28. Bd3 {[%clk 0:01:07]}  Bg7 {[%clk 0:00:53]} 29. Qe2 {[%clk 0:01:04]}  Rc3 {[%clk 0:00:53]} 30. Bc4 {[%clk 0:00:55]}  R8xc4 {[%clk 0:00:50]} 31. bxc4 {[%clk 0:00:55]}  Qxa4 {[%clk 0:00:51]} 32. e5 {[%clk 0:00:51]}  Qb3 {[%clk 0:00:47]} 33. Re1 {[%clk 0:00:38]}  dxe5 {[%clk 0:00:45]} 34. fxe5 {[%clk 0:00:33]}  Bxe5 {[%clk 0:00:44]} 35. Qf3 {[%clk 0:00:21]}  Bf6 {[%clk 0:00:40]} 36. Qg4 {[%clk 0:00:18]}  Ne5 {[%clk 0:00:31]} 37. Qc8+ {[%clk 0:00:18]}  Kg7 {[%clk 0:00:32]} 38. Bf4 {[%clk 0:00:13]}  Nxc4 {[%clk 0:00:31]} 39. Qe8 {[%clk 0:00:06]}  Ne3+ {[%clk 0:00:23]} 40. Bxe3 {[%clk 0:00:05]}  Rxe3 {[%clk 0:00:23]} 41. Rxe3 {[%clk 0:00:05]}  Qxe3 {[%clk 0:00:24]} 42. d6 {[%clk 0:00:05]}  Qe4+ {[%clk 0:00:21]} 43. Kh2 {[%clk 0:00:05]}  Qd4 {[%clk 0:00:21]} 44. Rxf6 {[%clk 0:00:02]}  Qd2+ {[%clk 0:00:19]} 45. Kh1 {[%clk 0:00:02]}  exf6 {[%clk 0:00:13]} 46. d7 {[%clk 0:00:02]}  Qd5+ {[%clk 0:00:11]} 47. Kh2 {[%clk 0:00:02]}  Qd2+ {[%clk 0:00:07]} 48. Kh1 {[%clk 0:00:03]}  Qd1+ {[%clk 0:00:06]} 49. Kh2 {[%clk 0:00:03]}  Qd2+ {[%clk 0:00:06]} 50. Kh1 {[%clk 0:00:04]} 1/2-1/2


[Site "https://www.chess.com"]

[Event "Titled Tuesday Blitz May 9 Late 2023"]
[White "Volkov, Maksim"]
[Black "Bachmann, Axel"]
[WhiteFideId "54123070"]
[BlackFideId "3700488"]
[WhiteElo "2297"]
[BlackElo "2605"]
[Result "0-1"]
[Round "05"]
[TimeControl "180+2"]
[Date "2023.05.09"]
[WhiteClock "0:00:08"]
[BlackClock "0:01:22"]

1. d4 {[%clk 0:03:00]}  Nf6 {[%clk 0:02:58]} 2. c4 {[%clk 0:03:01]}  e6 {[%clk 0:02:59]} 3. g3 {[%clk 0:03:01]}  Bb4+ {[%clk 0:02:59]} 4. Bd2 {[%clk 0:03:01]}  a5 {[%clk 0:02:59]} 5. Bg2 {[%clk 0:03:01]}  O-O {[%clk 0:02:57]} 6. Nf3 {[%clk 0:02:55]}  d5 {[%clk 0:02:56]} 7. Qc2 {[%clk 0:02:54]}  c5 {[%clk 0:02:55]} 8. dxc5 {[%clk 0:02:53]}  d4 {[%clk 0:02:52]} 9. Bxb4 {[%clk 0:02:53]}  axb4 {[%clk 0:02:53]} 10. Ne5 {[%clk 0:02:54]}  Qc7 {[%clk 0:02:53]} 11. Nd3 {[%clk 0:02:54]}  Na6 {[%clk 0:02:53]} 12. Nd2 {[%clk 0:02:46]}  e5 {[%clk 0:02:52]} 13. O-O {[%clk 0:02:44]}  Bf5 {[%clk 0:02:49]} 14. Nb3 {[%clk 0:02:43]}  Rad8 {[%clk 0:02:38]} 15. Qd2 {[%clk 0:02:35]}  e4 {[%clk 0:02:28]} 16. Nxb4 {[%clk 0:02:22]}  Nxc5 {[%clk 0:02:28]} 17. Nxd4 {[%clk 0:02:04]}  Qe5 {[%clk 0:02:28]} 18. e3 {[%clk 0:02:02]}  h5 {[%clk 0:02:28]} 19. Qc3 {[%clk 0:01:55]}  h4 {[%clk 0:02:17]} 20. Nxf5 {[%clk 0:01:35]}  Qxf5 {[%clk 0:02:16]} 21. Nc2 {[%clk 0:01:31]}  Rd3 {[%clk 0:02:09]} 22. Nd4 {[%clk 0:01:26]}  Qh5 {[%clk 0:02:00]} 23. Qa5 {[%clk 0:01:19]}  hxg3 {[%clk 0:01:53]} 24. hxg3 {[%clk 0:01:07]}  Ng4 {[%clk 0:01:51]} 25. Rfe1 {[%clk 0:01:07]}  b6 {[%clk 0:01:42]} 26. Qxb6 {[%clk 0:00:58]}  Ne6 {[%clk 0:01:31]} 27. Ne2 {[%clk 0:00:28]}  Ng5 {[%clk 0:01:23]} 28. Nf4 {[%clk 0:00:20]}  Qh2+ {[%clk 0:01:23]} 29. Kf1 {[%clk 0:00:21]}  Rd2 {[%clk 0:01:20]} 30. Re2 {[%clk 0:00:20]}  Nf3 {[%clk 0:01:21]} 31. Rxd2 {[%clk 0:00:19]}  Qg1+ {[%clk 0:01:21]} 32. Ke2 {[%clk 0:00:08]}  Qxf2+ {[%clk 0:01:22]} 0-1


[Site "https://www.chess.com"]

[Event "Titled Tuesday Blitz May 9 Late 2023"]
[White "Jaracz, Pawel"]
[Black "Ohanyan, Emin"]
[WhiteFideId "1102222"]
[BlackFideId "13312022"]
[WhiteElo "2438"]
[BlackElo "2411"]
[Result "1-0"]
[Round "05"]
[TimeControl "180+2"]
[Date "2023.05.09"]
[WhiteClock "0:02:10"]
[BlackClock "0:00:48"]

1. e4 {[%clk 0:03:00]}  e5 {[%clk 0:02:59]} 2. Nf3 {[%clk 0:03:01]}  Nc6 {[%clk 0:03:00]} 3. Bc4 {[%clk 0:03:01]}  Nf6 {[%clk 0:03:00]} 4. d3 {[%clk 0:03:01]}  d5 {[%clk 0:03:00]} 5. exd5 {[%clk 0:03:00]}  Nxd5 {[%clk 0:03:01]} 6. Nbd2 {[%clk 0:02:58]}  Be6 {[%clk 0:02:58]} 7. Ne4 {[%clk 0:02:57]}  f6 {[%clk 0:02:58]} 8. O-O {[%clk 0:02:56]}  Be7 {[%clk 0:02:57]} 9. d4 {[%clk 0:02:50]}  exd4 {[%clk 0:02:55]} 10. Nxd4 {[%clk 0:02:49]}  Nxd4 {[%clk 0:02:56]} 11. Qxd4 {[%clk 0:02:49]}  O-O {[%clk 0:02:54]} 12. Rd1 {[%clk 0:02:47]}  c6 {[%clk 0:02:54]} 13. Nc3 {[%clk 0:02:45]}  Nc7 {[%clk 0:01:58]} 14. Qe4 {[%clk 0:02:32]}  Qc8 {[%clk 0:01:51]} 15. Re1 {[%clk 0:02:31]}  Kf7 {[%clk 0:01:25]} 16. Bf4 {[%clk 0:02:27]}  f5 {[%clk 0:01:12]} 17. Qxf5+ {[%clk 0:02:25]}  Ke8 {[%clk 0:00:48]} 18. Qe4 {[%clk 0:02:10]} 1-0


[Site "https://www.chess.com"]

[Event "Titled Tuesday Blitz May 9 Late 2023"]
[White "Riehle, Marco"]
[Black "Annaberdiyev, Meylis"]
[WhiteFideId "12904392"]
[BlackFideId "14000563"]
[WhiteElo "2462"]
[BlackElo "2416"]
[Result "0-1"]
[Round "05"]
[TimeControl "180+2"]
[Date "2023.05.09"]
[WhiteClock "0:02:30"]
[BlackClock "0:02:27"]

1. e4 {[%clk 0:03:00]}  c5 {[%clk 0:02:53]} 2. a3 {[%clk 0:02:59]}  g6 {[%clk 0:02:49]} 3. h4 {[%clk 0:02:55]}  h5 {[%clk 0:02:45]} 4. Nc3 {[%clk 0:02:50]}  Bg7 {[%clk 0:02:45]} 5. Bc4 {[%clk 0:02:49]}  Nc6 {[%clk 0:02:40]} 6. d3 {[%clk 0:02:47]}  d6 {[%clk 0:02:34]} 7. Nf3 {[%clk 0:02:44]}  Bg4 {[%clk 0:02:33]} 8. Bg5 {[%clk 0:02:41]}  Nf6 {[%clk 0:02:33]} 9. Qd2 {[%clk 0:02:40]}  Bxf3 {[%clk 0:02:27]} 10. gxf3 {[%clk 0:02:41]}  Nd4 {[%clk 0:02:28]} 11. O-O {[%clk 0:02:30]}  Nxf3+ {[%clk 0:02:27]} 0-1


[Site "https://www.chess.com"]

[Event "Titled Tuesday Blitz May 9 Late 2023"]
[White "Kobo, Ori"]
[Black "Lewicki, Miroslaw"]
[WhiteFideId "2812320"]
[BlackFideId "1113380"]
[WhiteElo "2454"]
[BlackElo "2212"]
[Result "1-0"]
[Round "05"]
[TimeControl "180+2"]
[Date "2023.05.09"]
[WhiteClock "0:00:08"]
[BlackClock "0:00:02"]

1. Nf3 {[%clk 0:03:00]}  c5 {[%clk 0:02:57]} 2. c4 {[%clk 0:03:00]}  Nf6 {[%clk 0:02:57]} 3. Nc3 {[%clk 0:03:00]}  e6 {[%clk 0:02:57]} 4. d4 {[%clk 0:03:00]}  cxd4 {[%clk 0:02:57]} 5. Nxd4 {[%clk 0:03:01]}  Nc6 {[%clk 0:02:57]} 6. g3 {[%clk 0:02:59]}  Bc5 {[%clk 0:02:56]} 7. Nb3 {[%clk 0:02:54]}  Be7 {[%clk 0:02:37]} 8. Bg2 {[%clk 0:02:54]}  O-O {[%clk 0:02:35]} 9. O-O {[%clk 0:02:54]}  d6 {[%clk 0:02:35]} 10. Bf4 {[%clk 0:02:50]}  a6 {[%clk 0:02:33]} 11. Rc1 {[%clk 0:02:48]}  h6 {[%clk 0:02:25]} 12. h3 {[%clk 0:02:32]}  d5 {[%clk 0:01:49]} 13. cxd5 {[%clk 0:02:27]}  exd5 {[%clk 0:01:50]} 14. Nd4 {[%clk 0:02:16]}  Qb6 {[%clk 0:01:37]} 15. Nxc6 {[%clk 0:02:16]}  bxc6 {[%clk 0:01:36]} 16. Na4 {[%clk 0:02:15]}  Qb5 {[%clk 0:01:33]} 17. Be3 {[%clk 0:02:08]}  Bf5 {[%clk 0:01:28]} 18. b3 {[%clk 0:01:57]}  Ba3 {[%clk 0:01:20]} 19. Ra1 {[%clk 0:01:51]}  Rfe8 {[%clk 0:01:16]} 20. Nc3 {[%clk 0:01:23]}  Qb7 {[%clk 0:01:12]} 21. Qd2 {[%clk 0:01:10]}  Rad8 {[%clk 0:01:02]} 22. Bd4 {[%clk 0:01:08]}  Ne4 {[%clk 0:01:00]} 23. Nxe4 {[%clk 0:01:05]}  dxe4 {[%clk 0:00:56]} 24. Qe3 {[%clk 0:01:02]}  Qd7 {[%clk 0:00:43]} 25. Bb6 {[%clk 0:00:57]}  Rb8 {[%clk 0:00:43]} 26. Rad1 {[%clk 0:00:54]}  Qe6 {[%clk 0:00:42]} 27. Kh2 {[%clk 0:00:47]}  Qg6 {[%clk 0:00:36]} 28. Rd2 {[%clk 0:00:35]}  Be6 {[%clk 0:00:30]} 29. Rfd1 {[%clk 0:00:26]}  Bd5 {[%clk 0:00:29]} 30. Bd4 {[%clk 0:00:26]}  Bd6 {[%clk 0:00:26]} 31. Kg1 {[%clk 0:00:25]}  f5 {[%clk 0:00:26]} 32. Bc5 {[%clk 0:00:17]}  f4 {[%clk 0:00:22]} 33. gxf4 {[%clk 0:00:14]}  Bxc5 {[%clk 0:00:15]} 34. Qxc5 {[%clk 0:00:15]}  e3 {[%clk 0:00:14]} 35. Rxd5 {[%clk 0:00:16]}  exf2+ {[%clk 0:00:14]} 36. Qxf2 {[%clk 0:00:15]}  cxd5 {[%clk 0:00:15]} 37. Rxd5 {[%clk 0:00:15]}  Kh8 {[%clk 0:00:16]} 38. Kh2 {[%clk 0:00:14]}  Rbc8 {[%clk 0:00:15]} 39. Bf3 {[%clk 0:00:13]}  Qf6 {[%clk 0:00:14]} 40. Qd4 {[%clk 0:00:11]}  Qf7 {[%clk 0:00:12]} 41. Rd6 {[%clk 0:00:10]}  Re6 {[%clk 0:00:04]} 42. Rxe6 {[%clk 0:00:07]}  Qxe6 {[%clk 0:00:05]} 43. Bg4 {[%clk 0:00:08]}  Qe8 {[%clk 0:00:02]} 44. Bxc8 {[%clk 0:00:08]}  Qxe2+ {[%clk 0:00:03]} 45. Kg1 {[%clk 0:00:07]}  Qe1+ {[%clk 0:00:03]} 46. Kg2 {[%clk 0:00:07]}  Qe2+ {[%clk 0:00:04]} 47. Qf2 {[%clk 0:00:07]}  Qe4+ {[%clk 0:00:03]} 48. Kh2 {[%clk 0:00:07]}  Qc6 {[%clk 0:00:02]} 49. Bg4 {[%clk 0:00:08]}  g6 {[%clk 0:00:02]} 50. Bf3 {[%clk 0:00:07]}  Qd6 {[%clk 0:00:02]} 51. Bg2 {[%clk 0:00:08]}  h5 {[%clk 0:00:02]} 52. Qb2+ {[%clk 0:00:08]}  Kh7 {[%clk 0:00:02]} 53. Qe5 {[%clk 0:00:09]}  Qd2 {[%clk 0:00:02]} 54. Qe7+ {[%clk 0:00:09]}  Kh6 {[%clk 0:00:02]} 55. Qg5+ {[%clk 0:00:09]}  Kg7 {[%clk 0:00:03]} 56. Qe7+ {[%clk 0:00:10]}  Kh6 {[%clk 0:00:03]} 57. Qf8+ {[%clk 0:00:09]}  Kh7 {[%clk 0:00:03]} 58. Qf7+ {[%clk 0:00:08]}  Kh6 {[%clk 0:00:03]} 59. Qc7 {[%clk 0:00:08]}  a5 {[%clk 0:00:03]} 60. Qe5 {[%clk 0:00:08]}  Kh7 {[%clk 0:00:02]} 61. Qe7+ {[%clk 0:00:07]}  Kh6 {[%clk 0:00:03]} 62. Qg5+ {[%clk 0:00:08]}  Kg7 {[%clk 0:00:03]} 63. a4 {[%clk 0:00:09]}  Qe3 {[%clk 0:00:02]} 64. Qg3 {[%clk 0:00:08]}  Qd4 {[%clk 0:00:02]} 65. h4 {[%clk 0:00:09]}  Kh6 {[%clk 0:00:02]} 66. Qg5+ {[%clk 0:00:09]}  Kh7 {[%clk 0:00:02]} 67. Qe7+ {[%clk 0:00:09]}  Kh6 {[%clk 0:00:02]} 68. Qe5 {[%clk 0:00:08]}  Qf2 {[%clk 0:00:02]} 69. Qh8# {[%clk 0:00:08]} 1-0


[Site "https://www.chess.com"]

[Event "Titled Tuesday Blitz May 9 Late 2023"]
[White "benny_aizenberg"]
[Black "Kravtsiv, Martyn"]
[BlackFideId "14113147"]
[WhiteElo "2642"]
[BlackElo "2695"]
[Result "1-0"]
[Round "05"]
[TimeControl "180+2"]
[Date "2023.05.09"]
[WhiteClock "0:00:08"]
[BlackClock "0:00:00"]

1. e4 {[%clk 0:03:00]}  e5 {[%clk 0:02:56]} 2. Nf3 {[%clk 0:02:59]}  Nc6 {[%clk 0:02:56]} 3. d4 {[%clk 0:02:59]}  exd4 {[%clk 0:02:56]} 4. Nxd4 {[%clk 0:03:00]}  Nf6 {[%clk 0:02:56]} 5. Nxc6 {[%clk 0:03:00]}  bxc6 {[%clk 0:02:54]} 6. e5 {[%clk 0:03:00]}  Qe7 {[%clk 0:02:54]} 7. Qe2 {[%clk 0:03:01]}  Nd5 {[%clk 0:02:55]} 8. h4 {[%clk 0:03:01]}  Qe6 {[%clk 0:02:53]} 9. Nd2 {[%clk 0:03:01]}  a5 {[%clk 0:02:52]} 10. g3 {[%clk 0:02:56]}  Ba6 {[%clk 0:02:46]} 11. Qe4 {[%clk 0:02:50]}  Bxf1 {[%clk 0:02:40]} 12. Kxf1 {[%clk 0:02:48]}  Be7 {[%clk 0:02:40]} 13. c4 {[%clk 0:02:39]}  Nb6 {[%clk 0:02:38]} 14. b3 {[%clk 0:02:36]}  Bb4 {[%clk 0:02:21]} 15. Nf3 {[%clk 0:02:22]}  d5 {[%clk 0:02:20]} 16. cxd5 {[%clk 0:01:33]}  cxd5 {[%clk 0:02:21]} 17. Qe3 {[%clk 0:01:33]}  c5 {[%clk 0:02:00]} 18. Ng5 {[%clk 0:01:32]}  Qf5 {[%clk 0:02:00]} 19. e6 {[%clk 0:01:30]}  fxe6 {[%clk 0:01:59]} 20. Nxe6 {[%clk 0:01:30]}  Kd7 {[%clk 0:01:58]} 21. Nxc5+ {[%clk 0:01:14]}  Bxc5 {[%clk 0:01:57]} 22. Qxc5 {[%clk 0:01:15]}  Qe4 {[%clk 0:01:32]} 23. Kg1 {[%clk 0:01:11]}  Qe6 {[%clk 0:00:47]} 24. Be3 {[%clk 0:01:00]}  Rab8 {[%clk 0:00:41]} 25. Qxa5 {[%clk 0:00:56]}  Rhc8 {[%clk 0:00:41]} 26. Qa7+ {[%clk 0:00:49]}  Ke8 {[%clk 0:00:27]} 27. Re1 {[%clk 0:00:49]}  Nd7 {[%clk 0:00:18]} 28. Bd2 {[%clk 0:00:49]}  Ne5 {[%clk 0:00:18]} 29. Kg2 {[%clk 0:00:44]}  d4 {[%clk 0:00:08]} 30. Qxd4 {[%clk 0:00:40]}  Rb5 {[%clk 0:00:09]} 31. Bf4 {[%clk 0:00:37]}  Rcc5 {[%clk 0:00:08]} 32. Re4 {[%clk 0:00:31]}  Kf7 {[%clk 0:00:08]} 33. Rhe1 {[%clk 0:00:28]}  Qc6 {[%clk 0:00:08]} 34. Bxe5 {[%clk 0:00:24]}  Rxe5 {[%clk 0:00:08]} 35. Kh2 {[%clk 0:00:24]}  Rbd5 {[%clk 0:00:06]} 36. Rf4+ {[%clk 0:00:17]}  Kg6 {[%clk 0:00:03]} 37. Qxe5 {[%clk 0:00:16]}  Rxe5 {[%clk 0:00:03]} 38. Rxe5 {[%clk 0:00:17]}  h6 {[%clk 0:00:03]} 39. h5+ {[%clk 0:00:13]}  Kh7 {[%clk 0:00:03]} 40. a4 {[%clk 0:00:11]}  Qc2 {[%clk 0:00:02]} 41. Re3 {[%clk 0:00:09]}  Qd1 {[%clk 0:00:00]} 42. Rf5 {[%clk 0:00:08]} 1-0


[Site "https://www.chess.com"]

[Event "Titled Tuesday Blitz May 9 Late 2023"]
[White "Fernandez Guillen, Ernesto J."]
[Black "Kourkoulos-Arditis, Stamatis"]
[WhiteFideId "3512428"]
[BlackFideId "4221990"]
[WhiteElo "2429"]
[BlackElo "2400"]
[Result "1-0"]
[Round "05"]
[TimeControl "180+2"]
[Date "2023.05.09"]
[WhiteClock "0:00:14"]
[BlackClock "0:00:23"]

1. e4 {[%clk 0:03:00]}  c5 {[%clk 0:02:56]} 2. Nf3 {[%clk 0:03:00]}  e6 {[%clk 0:02:55]} 3. d4 {[%clk 0:02:59]}  cxd4 {[%clk 0:02:56]} 4. Nxd4 {[%clk 0:03:00]}  Nf6 {[%clk 0:02:57]} 5. Nc3 {[%clk 0:02:59]}  d6 {[%clk 0:02:57]} 6. Bc4 {[%clk 0:02:57]}  Be7 {[%clk 0:02:55]} 7. Be3 {[%clk 0:02:57]}  O-O {[%clk 0:02:53]} 8. Rg1 {[%clk 0:02:56]}  Nc6 {[%clk 0:02:44]} 9. g4 {[%clk 0:02:55]}  d5 {[%clk 0:02:35]} 10. exd5 {[%clk 0:02:51]}  exd5 {[%clk 0:02:36]} 11. Bb3 {[%clk 0:02:44]}  Bb4 {[%clk 0:02:33]} 12. a3 {[%clk 0:01:38]}  Bxc3+ {[%clk 0:02:32]} 13. bxc3 {[%clk 0:01:39]}  Re8 {[%clk 0:02:32]} 14. g5 {[%clk 0:01:36]}  Ne4 {[%clk 0:02:31]} 15. Qh5 {[%clk 0:01:19]}  Qa5 {[%clk 0:02:13]} 16. Kf1 {[%clk 0:01:13]}  g6 {[%clk 0:01:50]} 17. Qh6 {[%clk 0:01:00]}  Qxc3 {[%clk 0:01:16]} 18. Rd1 {[%clk 0:00:59]}  Nxd4 {[%clk 0:01:07]} 19. Rxd4 {[%clk 0:00:40]}  Nxf2 {[%clk 0:01:00]} 20. Rh4 {[%clk 0:00:14]}  Bh3+ {[%clk 0:00:47]} 21. Rg2 {[%clk 0:00:12]}  Bxg2+ {[%clk 0:00:45]} 22. Kxg2 {[%clk 0:00:13]}  Rxe3 {[%clk 0:00:37]} 23. Qxh7+ {[%clk 0:00:13]}  Kf8 {[%clk 0:00:36]} 24. Qh8+ {[%clk 0:00:13]}  Qxh8 {[%clk 0:00:36]} 25. Rxh8+ {[%clk 0:00:14]}  Kg7 {[%clk 0:00:34]} 26. Rxa8 {[%clk 0:00:15]}  Nh3 {[%clk 0:00:30]} 27. Rxa7 {[%clk 0:00:14]}  Nxg5 {[%clk 0:00:27]} 28. Rxb7 {[%clk 0:00:14]}  d4 {[%clk 0:00:27]} 29. a4 {[%clk 0:00:14]}  d3 {[%clk 0:00:27]} 30. cxd3 {[%clk 0:00:14]}  Rxd3 {[%clk 0:00:28]} 31. a5 {[%clk 0:00:14]}  Rd5 {[%clk 0:00:23]} 32. Bxd5 {[%clk 0:00:14]} 1-0


[Site "https://www.chess.com"]

[Event "Titled Tuesday Blitz May 9 Late 2023"]
[White "Defend1r"]
[Black "Milikow, Yoav"]
[BlackFideId "2822237"]
[WhiteElo "2558"]
[BlackElo "2410"]
[Result "0-1"]
[Round "05"]
[TimeControl "180+2"]
[Date "2023.05.09"]
[WhiteClock "0:00:28"]
[BlackClock "0:00:25"]

1. e4 {[%clk 0:02:25]}  e5 {[%clk 0:02:58]} 2. Nf3 {[%clk 0:02:25]}  Nf6 {[%clk 0:02:58]} 3. Nxe5 {[%clk 0:02:21]}  d6 {[%clk 0:02:58]} 4. Nf3 {[%clk 0:02:21]}  Nxe4 {[%clk 0:02:58]} 5. Nc3 {[%clk 0:02:20]}  Nxc3 {[%clk 0:02:58]} 6. dxc3 {[%clk 0:02:21]}  Be7 {[%clk 0:02:59]} 7. Be3 {[%clk 0:02:21]}  O-O {[%clk 0:03:00]} 8. Qd2 {[%clk 0:02:20]}  Nd7 {[%clk 0:03:01]} 9. O-O-O {[%clk 0:02:21]}  Nf6 {[%clk 0:03:01]} 10. Bd3 {[%clk 0:02:18]}  Re8 {[%clk 0:02:59]} 11. h3 {[%clk 0:02:18]}  d5 {[%clk 0:02:56]} 12. c4 {[%clk 0:02:05]}  c6 {[%clk 0:02:33]} 13. Bg5 {[%clk 0:02:05]}  Be6 {[%clk 0:02:20]} 14. Nd4 {[%clk 0:01:51]}  Bd7 {[%clk 0:02:03]} 15. cxd5 {[%clk 0:01:10]}  cxd5 {[%clk 0:02:02]} 16. Nf5 {[%clk 0:01:01]}  Bf8 {[%clk 0:01:44]} 17. Qf4 {[%clk 0:00:54]}  Qb6 {[%clk 0:01:38]} 18. Nh6+ {[%clk 0:00:48]}  gxh6 {[%clk 0:01:33]} 19. Bxf6 {[%clk 0:00:47]}  Bg7 {[%clk 0:01:32]} 20. Bxg7 {[%clk 0:00:43]}  Kxg7 {[%clk 0:01:33]} 21. Rhe1 {[%clk 0:00:40]}  Rac8 {[%clk 0:01:10]} 22. Qg3+ {[%clk 0:00:37]}  Kh8 {[%clk 0:01:08]} 23. Qf3 {[%clk 0:00:37]}  Kg7 {[%clk 0:01:04]} 24. Rxe8 {[%clk 0:00:35]}  Rxe8 {[%clk 0:01:02]} 25. Qxd5 {[%clk 0:00:28]}  Bc8 {[%clk 0:00:57]} 26. Qf3 {[%clk 0:00:23]}  Re5 {[%clk 0:00:48]} 27. Qg3+ {[%clk 0:00:23]}  Rg5 {[%clk 0:00:47]} 28. Qf3 {[%clk 0:00:22]}  Be6 {[%clk 0:00:44]} 29. a3 {[%clk 0:00:19]}  Bd5 {[%clk 0:00:41]} 30. Qf4 {[%clk 0:00:16]}  Qf6 {[%clk 0:00:22]} 31. Qxf6+ {[%clk 0:00:16]}  Kxf6 {[%clk 0:00:23]} 32. g4 {[%clk 0:00:16]}  Bg2 {[%clk 0:00:20]} 33. f4 {[%clk 0:00:15]}  Rg7 {[%clk 0:00:20]} 34. Rg1 {[%clk 0:00:06]}  Bxh3 {[%clk 0:00:17]} 35. Rh1 {[%clk 0:00:06]}  Bxg4 {[%clk 0:00:17]} 36. Rxh6+ {[%clk 0:00:07]}  Ke7 {[%clk 0:00:17]} 37. Rxh7 {[%clk 0:00:06]}  Rg8 {[%clk 0:00:14]} 38. Rh6 {[%clk 0:00:06]}  Be6 {[%clk 0:00:14]} 39. Kd2 {[%clk 0:00:06]}  Rg2+ {[%clk 0:00:14]} 40. Kc3 {[%clk 0:00:06]}  Rf2 {[%clk 0:00:15]} 41. Rh4 {[%clk 0:00:06]}  Kd6 {[%clk 0:00:14]} 42. Kd4 {[%clk 0:00:07]}  b6 {[%clk 0:00:13]} 43. Ke3 {[%clk 0:00:07]}  Rg2 {[%clk 0:00:13]} 44. Rh6 {[%clk 0:00:08]}  Ke7 {[%clk 0:00:13]} 45. f5 {[%clk 0:00:08]}  Bd7 {[%clk 0:00:13]} 46. Kf4 {[%clk 0:00:09]}  Rf2+ {[%clk 0:00:13]} 47. Ke5 {[%clk 0:00:10]}  Ba4 {[%clk 0:00:09]} 48. f6+ {[%clk 0:00:10]}  Kd7 {[%clk 0:00:09]} 49. Rh7 {[%clk 0:00:11]}  Ke8 {[%clk 0:00:09]} 50. Rh8+ {[%clk 0:00:11]}  Kd7 {[%clk 0:00:09]} 51. Bf5+ {[%clk 0:00:12]}  Kc7 {[%clk 0:00:10]} 52. Rc8+ {[%clk 0:00:12]}  Kb7 {[%clk 0:00:10]} 53. Rf8 {[%clk 0:00:13]}  Re2+ {[%clk 0:00:09]} 54. Kf4 {[%clk 0:00:13]}  Rf2+ {[%clk 0:00:09]} 55. Kg5 {[%clk 0:00:13]}  Rg2+ {[%clk 0:00:08]} 56. Kh4 {[%clk 0:00:14]}  Rh2+ {[%clk 0:00:08]} 57. Kg3 {[%clk 0:00:14]}  Rd2 {[%clk 0:00:07]} 58. Rxf7+ {[%clk 0:00:14]}  Kc6 {[%clk 0:00:08]} 59. Re7 {[%clk 0:00:14]}  Kd6 {[%clk 0:00:07]} 60. Rd7+ {[%clk 0:00:14]}  Bxd7 {[%clk 0:00:07]} 61. Bxd7 {[%clk 0:00:11]}  Kxd7 {[%clk 0:00:08]} 62. c4 {[%clk 0:00:12]}  Ke6 {[%clk 0:00:08]} 63. Kf4 {[%clk 0:00:13]}  Kxf6 {[%clk 0:00:08]} 64. Ke4 {[%clk 0:00:13]}  Rxb2 {[%clk 0:00:08]} 65. Kd5 {[%clk 0:00:14]}  Ke7 {[%clk 0:00:09]} 66. c5 {[%clk 0:00:15]}  bxc5 {[%clk 0:00:09]} 67. Kxc5 {[%clk 0:00:16]}  Kd7 {[%clk 0:00:10]} 68. a4 {[%clk 0:00:17]}  Kc7 {[%clk 0:00:10]} 69. a5 {[%clk 0:00:18]}  Kb7 {[%clk 0:00:11]} 70. Kc4 {[%clk 0:00:18]}  Ka6 {[%clk 0:00:11]} 71. Kc3 {[%clk 0:00:19]}  Rb5 {[%clk 0:00:12]} 72. Kc4 {[%clk 0:00:19]}  Kxa5 {[%clk 0:00:13]} 73. Kc3 {[%clk 0:00:20]}  Kb6 {[%clk 0:00:14]} 74. Kc4 {[%clk 0:00:21]}  a6 {[%clk 0:00:15]} 75. Kc3 {[%clk 0:00:21]}  Kb7 {[%clk 0:00:15]} 76. Kc4 {[%clk 0:00:22]}  Kb8 {[%clk 0:00:16]} 77. Kc3 {[%clk 0:00:23]}  Kc7 {[%clk 0:00:17]} 78. Kc4 {[%clk 0:00:24]}  Kc6 {[%clk 0:00:18]} 79. Kc3 {[%clk 0:00:25]}  Kc5 {[%clk 0:00:19]} 80. Kd3 {[%clk 0:00:25]}  a5 {[%clk 0:00:20]} 81. Ke3 {[%clk 0:00:26]}  Kb6 {[%clk 0:00:20]} 82. Ke4 {[%clk 0:00:27]}  Rb4+ {[%clk 0:00:21]} 83. Kd3 {[%clk 0:00:28]}  Kb5 {[%clk 0:00:22]} 84. Kc3 {[%clk 0:00:29]}  a4 {[%clk 0:00:23]} 85. Kd3 {[%clk 0:00:29]}  a3 {[%clk 0:00:24]} 86. Kc3 {[%clk 0:00:28]}  a2 {[%clk 0:00:25]} 0-1


[Site "https://www.chess.com"]